Workbook

Sheet TFBD_US$_SAC
A5: MODELO - Deve ser adaptado utilizando os valores, taxas e prazos do contrato
A8: Liberação
A9: Data | B9: Valor (US$)
A10: 2023-08-25 | B10: 100000
A12: Valores em US$ (604)
A13: Data de Vencimento | B13: Data de Pagamento | C13: Principal | D13: Juros Compensatórios (1) | G13: Amortização (2) | I13: Prestação | J13: Outros Eventos
D14: Taxa % a.a. | E14: Dias | F14: Valor | G14: nº de parcelas restantes | H14: Valor | J14: Taxa Flat (3) | K14: Remuneração (4) | L14: Total Outros Eventos
A18: 2023-09-15 | B18: =A18 -> 2023-09-15 | C18: =round_to_even((B10),2) -> 100000 | D18: 0.0484 | E18: =A18-A10 -> 21 | F18: =round_to_even(C18*ROUND(D18*E18/360,15),2) -> 282.33 | G18: 16 | H18: =round_to_even(C18/G18,2) -> 6250 | I18: =H18+F18 -> 6532.33 | J18: =round_to_even(B10*0.024246%,2) -> 24.25 | K18: =round_to_even(J18*ROUND(D18*(A18-A10)/360,15),2) -> 0.07 | L18: =SUM(J18:K18) -> 24.32 | Q18: =MOD(O18,20) -> 0
A19: 2023-10-16 | B19: =A19 -> 2023-10-16 | C19: =round_to_even((C18-H18),2) -> 93750 | D19: =D18 -> 0.0484 | E19: =A19-A18 -> 31 | F19: =round_to_even(C19*ROUND(D19*E19/360,15),2) -> 390.73 | G19: =G18-1 -> 15 | H19: =round_to_even(C19/G19,2) -> 6250 | I19: =H19+F19 -> 6640.73 | Q19: =MOD(O19,20) -> 0
A20: 2023-11-16 | B20: =A20 -> 2023-11-16 | C20: =round_to_even((C19-H19),2) -> 87500 | D20: =D19 -> 0.0484 | E20: =A20-A19 -> 31 | F20: =round_to_even(C20*ROUND(D20*E20/360,15),2) -> 364.68 | G20: =G19-1 -> 14 | H20: =round_to_even(C20/G20,2) -> 6250 | I20: =H20+F20 -> 6614.68
A21: 2023-12-15 | B21: 2023-12-15 | C21: =round_to_even((C20-H20),2) -> 81250 | D21: 0.0484 | E21: 29 | F21: =round_to_even(C21*ROUND(D21*E21/360,15),2) -> 316.78 | G21: 13 | H21: =round_to_even(C21/G21,2) -> 6250 | I21: 6566.78
A22: 2024-01-15 | B22: 2024-01-15 | C22: =round_to_even((C21-H21),2) -> 75000 | D22: 0.0484 | E22: 31 | F22: =round_to_even(C22*ROUND(D22*E22/360,15),2) -> 312.58 | G22: 12 | H22: =round_to_even(C22/G22,2) -> 6250 | I22: 6562.58
A23: 2024-02-15 | B23: 2024-02-15 | C23: =round_to_even((C22-H22),2) -> 68750 | D23: 0.0484 | E23: 31 | F23: =round_to_even(C23*ROUND(D23*E23/360,15),2) -> 286.53 | G23: 11 | H23: =round_to_even(C23/G23,2) -> 6250 | I23: 6536.53
A24: 2024-03-15 | B24: 2024-03-15 | C24: =round_to_even((C23-H23),2) -> 62500 | D24: 0.0484 | E24: 29 | F24: =round_to_even(C24*ROUND(D24*E24/360,15),2) -> 243.68 | G24: 10 | H24: =round_to_even(C24/G24,2) -> 6250 | I24: 6493.68
A25: 2024-04-15 | B25: 2024-04-15 | C25: =round_to_even((C24-H24),2) -> 56250 | D25: 0.0484 | E25: 31 | F25: =round_to_even(C25*ROUND(D25*E25/360,15),2) -> 234.44 | G25: 9 | H25: =round_to_even(C25/G25,2) -> 6250 | I25: 6484.44
A26: 2024-05-15 | B26: 2024-05-15 | C26: =round_to_even((C25-H25),2) -> 50000 | D26: 0.0484 | E26: 30 | F26: =round_to_even(C26*ROUND(D26*E26/360,15),2) -> 201.67 | G26: 8 | H26: =round_to_even(C26/G26,2) -> 6250 | I26: 6451.67
A27: 2024-06-17 | B27: 2024-06-17 | C27: =round_to_even((C26-H26),2) -> 43750 | D27: 0.0484 | E27: 33 | F27: =round_to_even(C27*ROUND(D27*E27/360,15),2) -> 194.1 | G27: 7 | H27: =round_to_even(C27/G27,2) -> 6250 | I27: 6444.1
A28: 2024-07-15 | B28: 2024-07-15 | C28: =round_to_even((C27-H27),2) -> 37500 | D28: 0.0484 | E28: 28 | F28: =round_to_even(C28*ROUND(D28*E28/360,15),2) -> 141.17 | G28: 6 | H28: =round_to_even(C28/G28,2) -> 6250 | I28: 6391.17
A29: 2024-08-15 | B29: 2024-08-15 | C29: =round_to_even((C28-H28),2) -> 31250 | D29: 0.0484 | E29: 31 | F29: =round_to_even(C29*ROUND(D29*E29/360,15),2) -> 130.24 | G29: 5 | H29: =round_to_even(C29/G29,2) -> 6250 | I29: 6380.24
A30: 2024-09-16 | B30: 2024-09-16 | C30: =round_to_even((C29-H29),2) -> 25000 | D30: 0.0484 | E30: 32 | F30: =round_to_even(C30*ROUND(D30*E30/360,15),2) -> 107.56 | G30: 4 | H30: =round_to_even(C30/G30,2) -> 6250 | I30: 6357.56
A31: 2024-10-15 | B31: 2024-10-15 | C31: =round_to_even((C30-H30),2) -> 18750 | D31: 0.0484 | E31: 29 | F31: =round_to_even(C31*ROUND(D31*E31/360,15),2) -> 73.1 | G31: 3 | H31: =round_to_even(C31/G31,2) -> 6250 | I31: 6323.1
A32: 2024-11-18 | B32: 2024-11-18 | C32: =round_to_even((C31-H31),2) -> 12500 | D32: 0.0484 | E32: 34 | F32: =round_to_even(C32*ROUND(D32*E32/360,15),2) -> 57.14 | G32: 2 | H32: =round_to_even(C32/G32,2) -> 6250 | I32: 6307.14
A33: 2024-12-16 | B33: 2024-12-16 | C33: =round_to_even((C32-H32),2) -> 6250 | D33: 0.0484 | E33: 28 | F33: =round_to_even(C33*ROUND(D33*E33/360,15),2) -> 23.53 | G33: 1 | H33: =round_to_even(C33/G33,2) -> 6250 | I33: 6273.53
A35: Obs.: A cotação do US$ (604) está disponível em Moedas Contratuais, no site do BNDES.
A37: FÓRMULAS DE CÁLCULO
A39: (1) Juros Compensatórios | G39: (3) Taxa Flat (com arredondamento bancário em 2 casas decimais)
A41: arredondamento em 15 casas decimais | G41: = Liberação x 0,024246%
G42: ou, quando aplicável,
A43: = (Principal x Fator de Juros) | G43: = (Liberação - Devolução de Liberação) x 0,024246%
A45: arredondamento bancário em 2 casas decimais | G45: (4) Remuneração
G46: arredondamento em 15 casas decimais
A47: Fator de Juros
A48: = Taxa % a.a. x Dias / 360 | G48: = (Base de Cálculo x Fator de Remuneração)
A50: (2) Amortização (com arredondamento bancário em 2 casas decimais) | G50: arredondamento bancário em 2 casas decimais
A52: = Principal / nº de Parcelas Restantes | G52: Fator de Remuneração
G53: = Taxa % a.a. x Dias / 360

Sheet Taxa Flat
A1: % TAXA FLAT | B1: 0.00024246
A3: A atualização da Taxa Flat é calculada pela taxa contratual e variação cambial, desde o dia da Liberação (inclusive) até o dia do efetivo pagamento (exclusive).
A5: Valores em US$ (604)
A6: DATA DE VENCIMENTO | B6: DATA DE PAGAMENTO | C6: EVENTO | D6: VALOR
A7: ='TFBD_US$_SAC'!A10 -> 2023-08-25 | B7: =A7 -> 2023-08-25 | C7: LIBERACAO | D7: ='TFBD_US$_SAC'!B10 -> 100000
A8: ='TFBD_US$_SAC'!A18 -> 2023-09-15 | B8: ='TFBD_US$_SAC'!B18 -> 2023-09-15 | C8: TAXA FLAT | D8: =round_to_even(D7*$B$1,2) -> 24.25
A9: =A8 -> 2023-09-15 | B9: =B8 -> 2023-09-15 | C9: REMUNERAÇÃO | D9: =round_to_even(D8*ROUND('TFBD_US$_SAC'!D18*(A8-A7)/360,15),2) -> 0.07
A38: * | B38: https://www.bcb.gov.br/estabilidadefinanceira/selicdadosdiarios
